bitfinex-derivatives/quotes_ETHF0:USTF0_20210102
["timestamp","ask_amount","ask_price","bid_price","bid_amount"]
[1609606446426,15.0,772.24,771.36,23.29186839]
[1609606446625,18.023,772.24,771.5,23.3029955]
[1609606447425,3.023,772.24,771.5,23.3029955]
[1609606447825,15.0,772.23,771.5,23.3029955]
[1609606448225,15.0,772.23,771.72,6.01438]
[1609606448627,15.0,772.23,772.0,17.06386156]
[1609606448828,3.023,772.24,772.0,17.06386156]
[1609606449429,3.023,772.24,772.03,17.08384547]
[1609606450229,3.023,772.24,772.23,6.01438]
[1609606450429,6.01438,772.62,772.23,6.01438]
[1609606451235,21.01438,772.62,772.23,6.01438]
[1609606452238,6.01438,772.62,772.56,6.01438]
[1609606453036,15.0,772.93,772.56,6.01438]
[1609606453236,15.0,772.92,772.56,6.01438]
[1609606453437,18.621,772.92,772.37,17.06275417]
[1609606454240,6.01438,772.59,772.52,6.01438]
[1609606454440,10.38338,772.59,772.52,6.01438]
[1609606455841,4.369,772.59,772.52,6.01438]
[1609606456241,6.01438,772.78,772.52,6.01438]
[1609606456743,21.01438,772.78,772.52,6.01438]
[1609606457544,15.0,772.78,772.52,6.01438]
[1609606457748,3.621,772.92,772.52,6.01438]
[1609606458247,6.01438,772.91,772.83,6.01438]
[1609606458646,3.621,772.92,772.83,6.01438]
[1609606459048,15.0,773.26,772.83,6.01438]
[1609606459546,2.6151,773.25,772.83,6.01438]
[1609606459749,22.0681,773.25,772.83,6.01438]
[1609606460146,4.453,773.25,772.83,6.01438]
[1609606460347,4.453,773.25,773.22,6.01438]
[1609606462252,4.453,773.25,773.14,6.01438]
[1609606462650,15.0,773.24,773.14,6.01438]
[1609606462850,15.0,773.24,773.03,16.99621669]
[1609606463649,4.453,773.25,773.03,16.99621669]
[1609606464253,4.453,773.25,772.65,4.816]
[1609606464254,15.0,773.24,772.99,17.00140387]
[1609606464451,6.01438,773.21,772.99,17.00140387]
[1609606464654,15.0,773.2,772.99,17.00140387]
[1609606465557,6.01438,773.21,772.99,17.00140387]
[1609606465957,15.0,773.2,772.99,17.00140387]
[1609606466159,15.0,773.2,772.87,17.00319872]
[1609606466361,6.01438,773.12,772.87,23.01757872]
[1609606466557,15.0,773.11,772.87,17.00319872]
[1609606467562,15.0,773.41,772.88,17.00053275]
[1609606467961,15.0,773.41,772.82,4.828]
[1609606467962,15.0,773.41,772.86,17.02196027]
[1609606468261,6.01438,773.3,773.12,6.01438]
[1609606468461,15.0,773.29,772.86,17.02196027]
[1609606468863,15.0,773.29,772.93,17.01015555]
[1609606469263,6.01438,773.3,772.93,17.01015555]
[1609606469462,4.005,773.42,772.93,17.01015555]
[1609606470065,4.005,773.42,772.86,17.009243]
[1609606470264,4.005,773.42,773.38,6.01438]
[1609606470865,15.0,773.67,773.38,6.01438]
[1609606471164,2.72986611,773.68,773.38,6.01438]
[1609606472166,17.72986611,773.68,773.38,6.01438]
[1609606472367,6.01438,773.61,773.38,6.01438]
[1609606472566,21.01438,773.61,773.38,6.01438]
[1609606472770,6.01438,773.61,773.38,6.01438]
[1609606472968,6.01438,773.61,773.14,4.288]
[1609606473568,6.01438,773.61,773.19,16.9688241]
[1609606474471,6.01438,773.61,773.53,6.01438]
[1609606474870,2.995,773.77,773.19,16.9688241]
[1609606475069,17.995,773.77,773.19,16.9688241]
[1609606475270,17.995,773.77,773.48,16.93485642]
[1609606476071,2.995,773.77,773.48,16.93485642]
[1609606476274,2.995,773.77,773.38,16.95536608]
[1609606476474,6.01438,773.58,773.38,16.95536608]
[1609606477577,17.995,773.77,773.38,16.95536608]
[1609606477779,2.995,773.77,773.38,16.95536608]
[1609606477979,15.0,774.2,773.38,16.95536608]
[1609606478383,6.01438,773.63,773.41,16.94788349]
[1609606478981,6.01438,773.63,773.48,16.94332813]
[1609606479181,4.744,773.82,773.48,16.94332813]
[1609606480284,6.01438,773.58,773.52,6.01438]
[1609606480484,6.01438,773.58,773.57,16.93370111]
[1609606480883,4.744,773.82,773.57,16.93370111]
[1609606481885,4.744,773.82,773.52,16.93242041]
[1609606482386,6.01438,773.74,773.54,6.01438]
[1609606482584,6.01438,773.74,773.52,16.93242041]
[1609606482886,4.744,773.82,773.52,16.93242041]
[1609606483085,15.0,773.97,773.52,16.93242041]
[1609606483585,4.346,773.98,773.52,16.93242041]
[1609606484286,15.0,773.97,773.52,16.93242041]
[1609606484486,6.01438,773.6,773.52,22.94680041]
[1609606484687,4.346,773.98,773.52,22.94680041]
[1609606484889,2.72808217,774.35,773.52,27.53180041]
[1609606485287,2.72783406,774.37,773.52,27.53180041]
[1609606485488,17.72783406,774.37,773.52,27.53180041]
[1609606486289,15.0,774.37,773.7,16.81676353]
[1609606486488,6.01438,773.95,773.8,6.01438]
[1609606486889,6.01438,773.95,773.7,16.81676353]
[1609606487089,6.01438,773.95,773.77,16.80837357]
[1609606488288,6.01438,773.95,773.71,16.81350844]
[1609606488489,6.01438,773.95,773.85,6.01438]
[1609606488688,6.01438,773.95,773.71,16.81350844]
[1609606489290,6.01438,773.95,773.73,16.80335656]
[1609606490293,6.01438,773.95,773.7,20.96360744]
[1609606490493,15.0,774.26,773.7,20.96360744]
[1609606490694,4.552,774.27,773.7,20.96360744]
[1609606491294,5.2243,777.7,773.7,20.96360744]
[1609606491295,2.72701673,774.52,773.7,4.155]
[1609606491895,15.0,774.51,773.7,4.155]
[1609606492497,6.01438,773.87,773.71,6.01438]
[1609606492897,6.01438,773.87,773.73,19.85250752]
[1609606493097,15.0,774.51,773.73,19.85250752]
[1609606493496,15.0,774.5,773.73,19.85250752]
[1609606494500,6.01438,773.99,773.87,6.01438]
[1609606494900,15.0,774.49,773.87,6.01438]
[1609606495102,15.0,774.49,773.87,10.07938]
[1609606495500,15.0,774.48,773.87,10.07938]
[1609606495900,15.0,774.48,773.87,4.065]
[1609606496503,6.01438,773.96,773.87,4.065]
[1609606498205,21.01438,773.96,773.87,4.065]
[1609606498408,6.01438,773.88,773.87,4.065]
[1609606498608,21.01438,773.88,773.87,4.065]
[1609606500213,6.01438,773.88,773.76,16.86285738]
[1609606500413,6.01438,773.77,773.76,16.86285738]
[1609606502114,15.0,774.47,773.76,16.86285738]
[1609606502515,15.0,774.47,773.85,6.01438]
[1609606503415,2.72745147,774.42,773.85,6.01438]
[1609606503614,15.0,774.41,773.7,4.155]
[1609606503816,15.0,774.41,773.58,16.87489534]
[1609606504215,4.27,774.48,773.8,16.81183218]
[1609606504415,2.7275433,774.66,774.21,6.01438]
[1609606505817,2.72639507,774.72,774.21,6.01438]
[1609606506417,2.72639507,774.72,774.57,6.01438]
[1609606506818,0.79025944,774.72,774.41,3.402]
[1609606507017,6.01438,774.75,774.41,3.402]
[1609606507418,15.0,775.13,774.41,3.402]
[1609606508418,6.01438,774.81,774.68,6.01438]
[1609606508619,6.01438,774.81,774.41,3.402]
[1609606509921,21.01438,774.81,774.41,3.402]
[1609606510521,6.01438,774.66,774.41,3.402]
[1609606510725,15.0,774.65,774.41,3.402]
[1609606511521,15.0,774.65,774.26,16.74238837]
[1609606511721,15.0,774.65,774.15,4.877]
[1609606511722,15.0,774.65,774.17,16.7706986]
[1609606511921,6.01438,774.66,774.17,16.7706986]
[1609606512522,6.01438,774.49,774.34,6.01438]
[1609606512924,6.01438,774.49,774.17,16.7706986]
[1609606513125,6.01438,774.49,774.15,4.877]
[1609606513326,6.01438,774.49,774.11,16.78978698]
[1609606514325,21.01438,774.49,774.11,16.78978698]
[1609606514525,6.01438,774.29,774.11,22.80416698]
[1609606514727,15.0,774.49,774.11,22.80416698]
[1609606514932,15.0,774.49,774.11,26.93116698]
[1609606515527,15.0,774.48,774.11,26.93116698]
[1609606515728,15.0,774.48,774.21,16.78088405]
[1609606516528,6.01438,774.22,774.21,16.78088405]
[1609606516830,15.0,774.65,774.21,16.78088405]
[1609606517032,15.0,774.65,774.11,4.127]
[1609606518533,6.01438,774.12,774.11,4.127]
[1609606518731,15.0,774.65,774.11,4.127]
[1609606519939,15.0,774.65,774.04,6.01438]
[1609606521346,15.0,774.65,774.08,16.82152727]
[1609606522442,6.01438,774.24,774.08,16.82152727]
[1609606523342,15.0,774.65,773.99,19.85638008]
[1609606523744,4.728,774.66,773.99,19.85638008]
[1609606523944,15.0,774.81,773.99,19.85638008]
[1609606524542,6.01438,774.73,774.43,6.01438]
[1609606525545,3.617,774.82,774.43,6.01438]
[1609606525747,2.72632614,774.91,774.43,6.01438]
[1609606525946,2.72632614,774.91,774.43,10.38938]
[1609606526145,2.72563777,775.19,774.43,10.38938]
[1609606526547,2.72563777,775.19,775.0,6.01438]
[1609606527549,6.01438,775.32,775.0,6.01438]
[1609606528549,6.01438,775.32,775.16,6.01438]
[1609606528750,6.01438,775.32,774.64,3.949]
[1609606528751,6.01438,775.32,774.65,16.68589997]
[1609606528952,10.74538,775.32,774.65,16.68589997]
[1609606530252,10.74538,775.32,774.65,31.68589997]
[1609606530453,4.39518,775.32,775.31,6.01438]
[1609606530855,2.72434849,775.54,775.31,6.01438]
[1609606532455,2.72434849,775.54,775.53,6.01438]
[1609606533656,4.64,775.57,775.53,6.01438]
[1609606535056,250.01813774,776.0,775.53,6.01438]
[1609606535457,15.0,775.99,775.53,6.01438]
[1609606536459,6.01438,775.7,775.53,6.01438]
[1609606536663,10.58238,775.7,775.53,6.01438]
[1609606536860,25.58238,775.7,775.07,16.63582772]
[1609606537060,10.58238,775.7,775.07,16.63582772]
[1609606537260,25.58238,775.7,775.07,16.63582772]
[1609606537964,25.58238,775.7,775.13,16.68541817]
[1609606538462,6.01438,775.28,775.13,16.68541817]
[1609606538866,6.01438,775.28,774.99,6.01438]
[1609606539664,4.398,775.42,774.99,6.01438]
[1609606540464,4.398,775.42,774.91,16.72239848]
[1609606540465,4.398,775.42,775.41,6.01438]
[1609606540673,4.568,775.7,775.41,6.01438]
[1609606541065,1.46021376,775.82,775.41,9.36038]
[1609606541867,1.45988547,776.14,775.41,9.36038]
[1609606542470,6.01438,775.87,775.72,6.01438]
[1609606542665,1.45988547,776.14,775.72,6.01438]
[1609606542666,4.937,776.11,775.72,6.01438]
[1609606544569,4.937,776.11,775.83,6.01438]
[1609606546573,4.937,776.11,775.99,6.01438]
[1609606546974,1.45988547,776.14,775.99,6.01438]
[1609606550576,1.45938308,776.32,775.99,6.01438]
[1609606551176,15.0,776.29,775.58,4.253]
[1609606551376,3.273,776.25,775.44,16.62022438]
[1609606551576,15.0,776.24,775.44,16.62022438]
[1609606552078,15.0,776.24,775.81,16.55773523]
[1609606552477,6.01438,775.87,775.81,16.55773523]
[1609606552677,15.0,775.86,775.81,16.55773523]
[1609606553478,15.0,775.86,775.53,16.59890057]
[1609606554481,6.01438,775.54,775.41,3.346]
[1609606554681,6.01438,775.54,775.27,16.6290675]
[1609606554682,15.0,775.53,775.27,16.6290675]
[1609606555082,15.0,775.53,774.97,16.67484554]
[1609606555484,0.4,775.27,774.97,16.67484554]
[1609606556181,0.4,775.27,774.95,16.67891727]
[1609606556482,6.01438,774.96,774.95,16.67891727]
[1609606557886,6.01438,774.96,773.73,27.2199]
[1609606557887,6.01438,774.96,774.89,16.69200006]
[1609606558789,0.4,775.27,774.88,16.68677748]
[1609606558987,0.4,775.27,774.88,20.81977748]
[1609606560492,0.4,775.27,775.26,6.01438]
[1609606565094,0.4,775.27,775.26,21.01438]
[1609606565292,1.46013569,776.28,775.26,21.01438]
[1609606565693,213.91489415,776.3,775.26,21.01438]
[1609606566495,213.91489415,776.3,775.99,6.01438]
[1609606566695,213.91489415,776.3,775.99,10.58538]
[1609606567697,235.51969255,776.0,775.99,10.58538]
[1609606568901,220.67309255,776.0,775.99,25.58538]
[1609606570500,199.35409255,776.0,775.99,25.58538]
[1609606570701,185.98969255,776.0,775.99,25.58538]
[1609606570901,185.98969255,776.0,775.99,10.58538]
[1609606571101,185.98969255,776.0,775.99,25.58538]
[1609606571302,170.22658687,776.0,775.99,25.58538]
[1609606571705,162.34558382,776.0,775.99,25.58538]
[1609606572104,138.02158382,776.0,775.99,25.58538]
[1609606572503,120.00958382,776.0,775.99,25.58538]
[1609606573507,75.24058382,776.0,775.99,25.58538]
[1609606573705,55.25758382,776.0,775.99,25.58538]
[1609606573905,14.26098382,776.0,775.99,55.48264893]
[1609606574105,213.91489415,776.3,775.99,55.48264893]
[1609606574806,213.91489415,776.3,776.29,6.01438]
[1609606575006,198.1570638,776.3,776.29,21.01438]
[1609606575508,198.1570638,776.3,776.29,24.40538]
[1609606575718,159.6090638,776.3,776.29,24.40538]
[1609606577512,159.6090638,776.3,776.29,9.40538]
[1609606577718,151.72986412,776.3,776.29,9.40538]
[1609606578718,135.97390909,776.3,776.29,9.40538]
[1609606581811,135.97390909,776.3,776.29,24.40538]
[1609606582920,135.97390909,776.3,776.29,9.40538]
[1609606583414,135.97390909,776.3,776.29,24.40538]
[1609606584018,120.21998889,776.3,776.29,24.40538]
[1609606584415,120.21998889,776.3,776.29,9.40538]
[1609606584616,120.21998889,776.3,776.29,24.40538]
[1609606585217,112.34342197,776.3,776.29,24.40538]
[1609606585616,112.34342197,776.3,776.29,9.40538]
[1609606586217,112.34342197,776.3,776.29,24.40538]
[1609606587217,96.59194955,776.3,776.29,24.40538]
[1609606587717,81.58894955,776.3,776.29,24.40538]
[1609606588017,63.05194955,776.3,776.29,24.40538]
[1609606589023,63.05194955,776.3,776.29,9.40538]
[1609606589227,63.05194955,776.3,776.29,24.40538]
[1609606590326,47.30450524,776.3,776.29,24.40538]
[1609606592030,47.30450524,776.3,776.29,9.40538]
[1609606592229,47.30450524,776.3,776.29,24.40538]
[1609606593434,31.5563299,776.3,776.29,24.40538]
[1609606594231,31.5563299,776.3,776.29,9.40538]
[1609606594631,31.5563299,776.3,776.29,24.40538]
[1609606594832,31.5563299,776.3,776.29,24.75348]
[1609606595437,31.5563299,776.3,776.29,9.75348]
[1609606597433,31.5563299,776.3,776.29,24.75348]
[1609606598333,31.5563299,776.3,776.29,9.75348]
[1609606599133,15.80630104,776.3,776.29,24.75348]
[1609606600238,15.80630104,776.3,776.29,9.75348]
[1609606601240,15.80630104,776.3,776.29,24.75348]
[1609606613448,5.80630104,776.3,776.29,24.75348]
[1609606614351,3.429,777.88,776.29,24.75348]
[1609606614751,3.429,777.88,776.99,6.01438]
[1609606614949,3.429,777.88,776.99,21.01438]
[1609606615354,3.429,777.88,776.99,24.11838]
[1609606615855,3.429,777.88,776.99,9.11838]
[1609606616254,3.429,777.88,776.99,24.11838]
[1609606617460,3.429,777.88,776.99,9.11838]
[1609606617861,3.429,777.88,776.99,24.11838]
[1609606618563,3.429,777.88,776.99,46.21169981]
[1609606618967,3.429,777.88,776.99,31.21169981]
[1609606619363,3.429,777.88,776.99,46.21169981]
[1609606619569,3.429,777.88,776.99,24.11838]
[1609606620964,3.429,777.88,776.99,9.11838]
[1609606621167,245.12140109,777.0,776.99,24.11838]
[1609606621767,245.12140109,777.0,776.99,9.11838]
[1609606624869,245.12140109,777.0,776.97,3.452]
[1609606626369,245.12140109,777.0,776.96,13.5994605]
[1609606626770,245.12140109,777.0,776.81,6.01438]
[1609606628182,245.12140109,777.0,776.82,15.0]
[1609606628385,245.12140109,777.0,776.82,18.522]
[1609606628770,245.12140109,777.0,776.99,6.01438]
[1609606628970,245.12140109,777.0,776.99,10.54838]
[1609606629171,237.24946477,777.0,776.99,10.54838]
[1609606630074,221.5056595,777.0,776.99,10.54838]
[1609606631676,221.5056595,777.0,776.99,25.54838]
[1609606632576,221.5056595,777.0,776.99,10.54838]
[1609606633377,224.0999595,777.0,776.99,10.54838]
[1609606633777,224.0999595,777.0,776.99,25.54838]
[1609606633977,221.5056595,777.0,776.99,25.54838]
[1609606634680,221.5056595,777.0,776.99,10.54838]
[1609606641797,224.0664595,777.0,776.99,10.54838]
[1609606643000,205.76285252,777.0,776.99,25.54838]
[1609606644198,205.76285252,777.0,776.99,10.54838]
[1609606644399,205.76285252,777.0,776.99,25.54838]
[1609606645499,208.33035252,777.0,776.99,25.54838]
[1609606645901,205.76285252,777.0,776.99,25.54838]
[1609606646103,190.02534187,777.0,776.99,25.54838]
[1609606648906,174.28624187,777.0,776.99,25.54838]
[1609606649906,155.64124187,777.0,776.99,25.54838]
[1609606650906,122.41160028,777.0,776.99,25.54838]
[1609606652805,124.96520028,777.0,776.99,25.54838]
[1609606653006,122.41160028,777.0,776.99,25.54838]
[1609606653506,100.58660028,777.0,776.99,25.54838]
[1609606653705,85.58860028,777.0,776.99,25.54838]
[1609606654105,88.18620028,777.0,776.99,25.54838]
[1609606654307,72.4544438,777.0,776.99,25.54838]
[1609606655206,55.7814438,777.0,776.99,25.54838]
[1609606655606,53.1838438,777.0,776.99,25.54838]
[1609606655807,23.8748438,777.0,776.99,10.54838]
[1609606656006,23.8748438,777.0,776.99,25.54838]
[1609606656909,18.5295438,777.0,776.99,54.58043517]
[1609606657611,2.79774064,777.0,776.99,54.58043517]
[1609606661615,32.1834,777.9,776.99,39.58043517]
[1609606663021,32.1834,777.9,777.7,6.01438]
[1609606663218,32.1834,777.9,777.7,10.23438]
[1609606663820,198.46426089,777.71,777.7,10.23438]
[1609606667624,198.46426089,777.71,777.7,31.98504566]
[1609606667625,182.73739888,777.71,777.7,31.98504566]
[1609606668625,182.73739888,777.71,777.7,10.23438]
[1609606669624,214.92079888,777.71,777.7,10.23438]
[1609606670324,182.73739888,777.71,777.7,10.23438]
[1609606671125,178.06579888,777.71,777.7,10.23438]
[1609606673329,162.33980978,777.71,777.7,10.23438]
[1609606677933,146.6190167,777.71,777.7,10.23438]
[1609606683540,146.6190167,777.71,777.7,38.90203952]
[1609606684441,130.90249146,777.71,777.7,10.23438]
[1609606685742,127.70249146,777.71,777.7,10.23438]
[1609606686745,127.70249146,777.71,777.7,10.45188]
[1609606687045,107.42749146,777.71,777.7,10.45188]
[1609606688147,101.02439146,777.71,777.7,10.45188]
[1609606691149,86.46599146,777.71,777.7,10.45188]
[1609606692751,70.75744038,777.71,777.7,10.45188]
[1609606693352,62.90334159,777.71,777.7,10.45188]
[1609606696355,59.70334159,777.71,777.7,10.45188]
[1609606696756,43.99829145,777.71,777.7,10.45188]
[1609606698959,36.14966494,777.71,777.7,10.45188]
[1609606699761,20.45682263,777.71,777.7,10.45188]
[1609606699957,14.21262263,777.71,777.7,10.45188]
[1609606700960,13.52876763,777.71,777.7,10.45188]
[1609606703262,3.0,779.0,777.7,10.45188]
[1609606703263,1.93299913,779.0,777.7,10.45188]
[1609606704060,192.50031813,779.13,777.7,10.45188]
[1609606705162,192.50031813,779.13,779.12,6.01438]
[1609606705362,192.50031813,779.13,779.12,9.56538]
[1609606706463,176.80511456,779.13,779.12,9.56538]
[1609606707264,176.80511456,779.13,779.12,33.94584659]
[1609606707765,176.80511456,779.13,779.12,9.56538]
[1609606707965,179.37221456,779.13,779.12,9.56538]
[1609606709578,161.11583232,779.13,779.12,9.56538]
[1609606710669,163.70503232,779.13,779.12,9.56538]
[1609606710882,155.8616158,779.13,779.12,9.56538]
[1609606711569,153.2724158,779.13,779.12,9.56538]
[1609606712973,137.58726639,779.13,779.12,9.56538]
[1609606715574,140.15586639,779.13,779.12,9.56538]
[1609606715975,137.58726639,779.13,779.12,9.56538]
[1609606716876,134.38726639,779.13,779.12,9.56538]
[1609606717077,118.70550594,779.13,779.12,9.56538]
[1609606718179,121.28540594,779.13,779.12,9.56538]
[1609606718380,118.70550594,779.13,779.12,9.56538]
[1609606719180,110.86549012,779.13,779.12,9.56538]
[1609606720483,97.77536776,779.13,779.12,9.56538]
[1609606720682,95.18566776,779.13,779.12,9.56538]
[1609606722385,95.18566776,779.13,779.12,39.45340572]
[1609606723588,79.50705386,779.13,779.12,9.56538]
[1609606726087,79.30705386,779.13,779.12,9.56538]
[1609606726990,63.62604942,779.13,779.12,9.56538]
[1609606727189,66.21134942,779.13,779.12,9.56538]
[1609606727402,63.62604942,779.13,779.12,9.56538]
[1609606727589,55.78521648,779.13,779.12,9.56538]
[1609606727990,55.58521648,779.13,779.12,9.56538]
[1609606729796,55.38521648,779.13,779.12,9.56538]
[1609606729995,57.93051648,779.13,779.12,9.56538]
[1609606730296,42.24743965,779.13,779.12,9.56538]
[1609606731395,39.70213965,779.13,779.12,9.56538]
[1609606731797,39.70213965,779.13,779.12,9.88868]
[1609606732401,42.26953965,779.13,779.12,9.88868]
[1609606732599,39.70213965,779.13,779.12,9.88868]
[1609606733201,31.8567014,779.13,779.12,9.88868]
[1609606733600,34.4046014,779.13,779.12,9.88868]
[1609606734503,31.8567014,779.13,779.12,9.88868]
[1609606735705,16.16435719,779.13,779.12,9.88868]
[1609606737106,16.16435719,779.13,779.12,6.33768]
[1609606738707,18.69735719,779.13,779.12,6.33768]
[1609606739108,16.16435719,779.13,779.12,6.33768]
[1609606739308,0.46976044,779.13,779.12,6.33768]
[1609606741708,2.99836044,779.13,779.12,6.33768]
[1609606742511,0.46976044,779.13,779.12,6.33768]
[1609606746515,3.03896044,779.13,779.12,6.33768]
[1609606746715,0.46976044,779.13,779.12,6.33768]
[1609606747317,0.46976044,779.13,779.12,6.01438]
[1609606747517,0.46976044,779.13,778.89,24.42355479]
[1609606747718,0.46976044,779.13,778.76,24.45036058]
[1609606748120,2.5394,779.12,778.76,24.45036058]
[1609606748317,0.46976044,779.13,778.76,24.45036058]
[1609606748718,0.46976044,779.13,778.61,24.49415213]
[1609606749318,0.46976044,779.13,777.44,30.97789828]
[1609606749319,6.01438,779.11,778.65,6.01438]
[1609606749518,21.01438,779.11,778.65,6.01438]
[1609606750019,21.01438,779.11,778.51,24.51648016]
[1609606750621,21.01438,779.11,778.38,24.52841893]
[1609606751425,6.01438,778.39,778.38,24.52841893]
[1609606751621,69.92238,778.39,778.38,2.35681893]
[1609606751822,69.92238,778.39,778.22,27.41411528]
[1609606752022,69.92238,778.39,777.73,6.01438]
[1609606752423,2.5516,778.38,777.73,6.01438]
[1609606752622,15.0,778.37,777.73,6.01438]
[1609606752923,15.0,778.37,777.54,28.95625376]
[1609606753424,6.01438,778.02,777.54,28.95625376]
[1609606753623,15.0,778.01,777.54,28.95625376]
[1609606754225,15.0,778.01,777.35,6.01438]
[1609606754625,2.5549,778.0,777.35,6.01438]
[1609606754824,9.14838,778.02,777.35,6.01438]
[1609606755026,9.14838,778.02,776.86,2.02929469]
[1609606755426,6.01438,777.59,777.16,6.01438]
[1609606755625,10.61038,777.59,777.16,6.01438]
[1609606756125,2.5465,777.58,776.91,29.08921189]
[1609606756727,10.61038,777.59,776.91,29.08921189]
[1609606756929,4.596,777.59,776.91,32.97121189]
[1609606757328,6.01438,777.44,777.23,6.01438]
[1609606757928,4.596,777.59,777.23,6.01438]
[1609606758828,2.5362,777.58,777.23,6.01438]
[1609606759430,4.596,777.59,777.23,6.01438]
[1609606759431,10.61038,777.59,777.23,6.01438]
[1609606759631,4.596,777.59,777.23,6.01438]
[1609606759831,3.134,778.02,777.23,6.01438]
[1609606760031,3.908,778.39,777.23,6.01438]
[1609606760231,15.0,778.8,777.23,6.01438]
[1609606761333,6.01438,778.17,778.06,6.01438]
[1609606761534,2.5801,778.16,778.06,6.01438]
[1609606761736,33.9142,778.15,778.06,6.01438]
[1609606762235,33.9142,778.15,777.19,4.321]
[1609606763436,33.9142,778.15,778.14,6.01438]
[1609606766939,33.9142,778.71,778.14,6.01438]
[1609606767340,33.9142,778.71,778.7,6.01438]
[1609606768345,36.4696,778.71,778.7,6.01438]
[1609606768545,33.9142,778.71,778.7,6.01438]
[1609606769347,36.4832,778.71,778.7,6.01438]
[1609606769950,33.9142,778.71,778.7,6.01438]
[1609606771150,36.4819,778.71,778.7,6.01438]
[1609606771649,33.9142,778.71,778.7,6.01438]
[1609606772349,2.70847776,780.33,778.7,6.01438]
[1609606772749,2.5582,779.14,778.7,6.01438]
[1609606773350,2.5582,779.14,779.12,6.01438]
[1609606773550,6.01438,779.77,779.12,6.01438]
[1609606774350,15.0,780.36,779.12,6.01438]
[1609606774551,15.0,780.7,779.12,6.01438]
[1609606774950,3.03146044,779.13,779.12,6.01438]
[1609606775551,0.46976044,779.13,779.12,6.01438]
[1609606775752,0.46976044,779.13,779.12,9.09038]
[1609606776551,2.5697,779.38,779.12,9.09038]
[1609606776552,2.5697,779.38,779.29,2.5617]
[1609606776752,216.18626033,780.55,779.29,2.5617]
[1609606777353,216.18626033,780.55,779.99,6.01438]
[1609606779353,6.01438,780.4,779.99,6.01438]
[1609606779753,6.01438,780.4,779.95,15.71646264]
[1609606779965,4.714,780.08,779.95,15.71646264]
[1609606781356,2.5635,779.99,779.95,15.71646264]
[1609606781755,4.714,780.08,779.95,15.71646264]
[1609606782459,4.714,780.08,779.88,15.73280892]
[1609606782856,2.5625,779.99,779.88,15.73280892]
[1609606783157,4.714,780.08,779.88,15.73280892]
[1609606783357,4.714,780.08,779.88,21.74718892]
[1609606783560,4.714,780.08,779.88,6.01438]
[1609606784858,4.714,780.08,779.79,15.74196793]
[1609606785263,0.4,779.88,779.79,15.74196793]
[1609606785460,9.83538,779.88,779.79,15.74196793]
[1609606785658,9.83538,779.88,779.75,15.75002269]
[1609606786058,0.2,779.8,779.75,15.75002269]
[1609606786560,0.2,779.8,779.4,6.01438]
[1609606786561,0.2,779.8,779.52,15.7756118]
[1609606787564,6.01438,779.61,779.55,15.7722864]
[1609606788164,0.2,779.6,779.55,15.7722864]
[1609606788767,0.2,779.6,779.41,15.7795746]
[1609606789466,6.01438,779.51,779.48,6.01438]
[1609606789666,4.581,779.51,779.48,6.01438]
[1609606790970,0.2,779.8,779.49,18.61267859]
[1609606791369,0.2,779.8,779.61,6.01438]
[1609606791571,0.2,779.8,779.49,18.61267859]
[1609606791771,0.2,779.8,779.5,18.60850465]
[1609606792971,0.2,779.8,779.7,15.74194488]
[1609606793370,0.2,779.8,779.79,6.01438]
[1609606794171,0.2,779.8,779.7,15.74194488]
[1609606794372,0.2,779.8,779.39,21.46628847]
[1609606794373,0.2,779.8,779.74,15.73784229]
[1609606795072,0.2,779.8,779.76,15.73583138]
[1609606796376,0.2,779.8,779.74,6.01438]
[1609606797678,6.01438,780.01,779.74,21.7530456]
[1609606798179,6.01438,780.01,779.74,6.01438]
[1609606798577,216.18626033,780.55,779.74,6.01438]